[Event "French-ch U16-U18 2024"]
[Site "Agen"]
[Date "2024.04.16"]
[Round "4.17"]
[White "Razafindratsima, Timothe"]
[Black "Schippke, Manon"]
[Result "1-0"]
[ECO "C45"]
[WhiteElo "2438"]
[BlackElo "2239"]
[Annotator "TA"]
[PlyCount "105"]
[EventDate "2024.04.14"]
[EventType "swiss"]
[EventCountry "FRA"]
[SourceTitle "playchess.com"]
[Source "ChessBase"]
[SourceQuality "1"]
[TimeControl "5400+30"]

{[%evp 14,105,0,0,0,-56,-12,-8,8,-9,-16,-10,-11,-16,-10,-29,-12,-12,0,0,66,45,74,70,103,96,202,91,161,81,79,78,87,93,70,65,64,70,69,64,63,67,57,66,74,81,158,158,158,158,172,159,185,145,262,188,184,189,415,402,227,206,242,241,413,394,355,305,305,305,305,305,622,655,1027,1010,1368,1361,2153,2082,6642,6642,6492,6492,6061,5930,10536,4144,29969,29970,12843,4137,29941,12850]} 1. e4 {[%emt 0:00:01][%cal Be2e4,Be4e5][%mdl 32]} e5 {[%emt 0:04:51]} 2. Nf3 {[%emt 0:00:07]} Nc6 {[%emt 0:00:06]} 3. d4 {[%emt 0:01:13]} exd4 {[%emt 0:00:06]} 4. Nxd4 {[%emt 0:00:03]} Nf6 {[%emt 0:00:06]} 5. Nxc6 {[%emt 0:00:21]} bxc6 {[%emt 0:00:04]} 6. e5 {[%emt 0:00:04]} Qe7 {[%emt 0:00:02]} 7. Qe2 {[%emt 0:00:12]} Nd5 {[%emt 0:00:05]} 8. h4 {[%emt 0:00:04]} Qe6 {[%emt 0:00:03]} 9. a3 {[%emt 0:08:01] Repels Nb4} ({Better is} 9. Nd2 $11) 9... d6 {[%emt 0:14:30]} 10. exd6 {[%emt 0:32:29]} cxd6 {[%emt 0:00:07] The position is equal.} 11. b3 {[%emt 0:00:51]} Be7 {[%emt 0:04:46]} 12. Bb2 {[%emt 0:02:24]} O-O {[%emt 0:03:24]} 13. Qxe6 {[%emt 0:01:44]} Bxe6 {[%emt 0:00:24]} 14. Nd2 {[%emt 0:01:10]} a5 {[%emt 0:15:01]} 15. g3 {[%emt 0:06:28]} Rfe8 {[%emt 0:11:52] ...Bg4 would now be deadly.} 16. Bg2 {[%emt 0:04:17]} Bf6 {[%emt 0:10:34]} (16... Rec8 $11) 17. O-O-O $1 $14 {[%emt 0:01:25]} Bxb2+ {[%emt 0:01:52]} 18. Kxb2 {[%emt 0:00:07]} Red8 {[%emt 0:02:08]} 19. Rhe1 {[%emt 0:15:52]} Rac8 {[%emt 0:05:01]} (19... Rab8 $16) 20. Ne4 {[%emt 0:04:05]} (20. Nc4 $1 $18 {is the precise move to win.} a4 21. Bxd5 (21. bxa4 Ra8 $11) 21... cxd5 22. Nb6) 20... a4 {[%emt 0:02:38]} 21. c4 {[%emt 0:07:56]} (21. bxa4 h6 $16) (21. Ng5 $1 $18 {[%cal Rg5e6]} axb3 22. cxb3) 21... Nb6 $16 {[%emt 0:00:41] Hoping for ...axb3.} 22. Nxd6 {[%emt 0:02:40]} Rb8 {[%emt 0:00:05][%cal Od8d6,Bc8b8,Bb8b6,Bb6b3,Bb3c3][%mdl 32]} 23. c5 {[%emt 0:00:19] And now b4 would win. White is more active.} (23. Bxc6 $2 Rxd6 (23... Nxc4+ 24. Nxc4 Rxb3+ 25. Ka1 $18) 24. Rxd6 Nxc4+ 25. Ka1 Nxd6 $19) 23... Bxb3 {[%emt 0:02:59] Black is weak on the dark squares} 24. cxb6 {[%emt 0:02:27]} Bxd1 {[%emt 0:00:04]} 25. Rxd1 {[%emt 0:00:09][%cal Ob2c2]} Rxb6+ {[%emt 0:00:04]} 26. Kc2 {[%emt 0:00:33] Nc4 is the strong threat.} Rb3 {[%emt 0:01:15]} 27. Nc4 $1 {[%emt 0:00:33]} (27. Bxc6 Rb6 (27... Rxa3 28. Bd5 $17) 28. Bxa4 (28. Be8 $2 Rbxd6 29. Rxd6 Rxd6 $19) (28. Nc4 Rxd1 29. Nxb6 Rd6 $17) 28... Rbxd6 (28... Rdxd6 29. Kc3 $17) 29. Rxd6 Rxd6 $17) 27... Rxd1 {[%emt 0:00:26]} 28. Kxd1 {[%emt 0:00:01][%cal Od1d2]} Rc3 {[%emt 0:00:08] White leaves nothing to chance now.} 29. Bf1 {[%emt 0:00:02]} Kf8 {[%emt 0:01:22] [#]} (29... Rf3 $142) 30. Be2 $1 {[%emt 0:00:18]} Rb3 {[%emt 0:05:45]} 31. Kd2 {[%emt 0:00:12]} Rb7 {[%emt 0:01:04]} 32. Bf3 {[%emt 0:01:32]} Ke7 {[%emt 0:00:41]} 33. Be4 {[%emt 0:01:21]} Ke6 {[%emt 0:00:58]} (33... Rd7+ $16 {keeps fighting.} 34. Bd3 Rd8) 34. Kc3 {[%emt 0:00:55]} (34. Bxh7 g6 35. h5 Kf6 $17) 34... Rb3+ {[%emt 0:01:16]} 35. Kd4 {[%emt 0:00:20]} f5 $2 {[%emt 0:00:28]} (35... Ke7 {was worth a try.} 36. Bxc6 Kd8 37. Bxa4 Rf3) 36. Bxc6 $18 {[%emt 0:00:28]} f4 {[%emt 0:01:17]} 37. g4 {[%emt 0:04:25]} h6 {[%emt 0:01:10]} 38. h5 {[%emt 0:01:11]} Rb1 $2 {[%emt 0:01:16]} (38... Kf6 {was called for.} 39. Bxa4 Rf3) 39. Ke4 {[%emt 0:00:59]} (39. Bxa4 Rf1 40. Bb5 Rxf2 $18) 39... Re1+ {[%emt 0:01:30]} 40. Kxf4 {[%emt 0:00:12]} Rc1 {[%emt 0:00:04] [#]} 41. Bb5 {[%emt 0:00:04]} Kd5 {[%emt 0:00:25]} 42. Ne3+ {[%emt 0:00:48]} Kc5 $2 {[%emt 0:00:39]} (42... Ke6 43. Ke4 (43. Bxa4 Rc3 $18) 43... Rc3 44. Bxa4 Rxa3) 43. Bxa4 {[%emt 0:00:08]} Rc3 {[%emt 0:00:06]} 44. Be8 {[%emt 0:00:46]} Rxa3 {[%emt 0:00:19]} 45. Nf5 {[%emt 0:00:07]} Ra7 {[%emt 0:00:52]} 46. g5 {[%emt 0:00:38]} hxg5+ {[%emt 0:00:57]} 47. Kxg5 {[%emt 0:00:06]} Kd5 {[%emt 0:00:03]} 48. Kg6 {[%emt 0:00:26]} Ke5 {[%emt 0:00:16]} 49. Nxg7 {[%emt 0:00:23] aiming for h6.} Ra1 {[%emt 0:00:37]} 50. Nf5 {[%emt 0:01:56]} Ra6+ {[%emt 0:00:03]} 51. Kg5 {[%emt 0:00:05]} Ra2 {[%emt 0:00:03]} 52. Ne3 {[%emt 0:01:38] Intending h6 and mate.} Ke6 {[%emt 0:00:25]} 53. f4 {[%emt 0:00:39] Weighted Error Value: White=0.16 (very precise) /Black=0.59.  Mistake:       	White=3     	Black=8      Inaccurate:     	---       	Black=4      OK:         	White=14    	Black=9      Best:        	White=2     	Black=4      Strong:       	White=3     	---} 1-0

[Event "French-ch U16-U18 2024"]
[Site "Agen"]
[Date "2024.04.16"]
[Round "4.18"]
[White "Siffert, Arman"]
[Black "Belkaid, Sohan"]
[Result "1/2-1/2"]
[ECO "D35"]
[WhiteElo "2150"]
[BlackElo "2412"]
[Annotator "TA"]
[PlyCount "120"]
[EventDate "2024.04.14"]
[EventType "swiss"]
[EventCountry "FRA"]
[SourceTitle "playchess.com"]
[Source "ChessBase"]
[SourceQuality "1"]
[TimeControl "5400+30"]

{[%evp 18,120,17,3,4,-9,7,-39,-15,-25,0,-29,0,0,0,0,0,-143,-155,-92,-44,-90,0,-56,3,0,0,-26,-21,-52,-30,-26,0,0,0,0,0,-54,-66,-160,-159,-147,-152,-266,-274,-243,-35,-36,-31,-136,-133,-155,-156,-156,-155,-144,0,0,178,-160,0,0,0,-108,-18,-20,0,-81,0,0,10,0,0,0,0,-139,-131,-145,-141,-148,66,82,110,113,108,129,115,16,15,15,43,8,8,8,8,8,8,8,8,8,8,8,8,7,7]} 1. d4 {[%emt 0:00:07]} d5 {[%emt 0:00:11]} 2. c4 {[%emt 0:00:13]} e6 {[%emt 0:00:18]} 3. Nc3 {[%emt 0:00:14]} Nf6 {[%emt 0:00:13]} 4. cxd5 {[%emt 0:00:35]} exd5 {[%emt 0:00:07]} 5. Bg5 {[%emt 0:00:13]} c6 {[%emt 0:00:14]} 6. e3 {[%emt 0:00:22]} Bd6 {[%emt 0:00:13]} 7. Bd3 {[%emt 0:02:31]} O-O {[%emt 0:02:39]} 8. Qc2 {[%emt 0:03:37]} h6 {[%emt 0:00:11]} 9. Bh4 {[%emt 0:00:18]} Re8 {[%emt 0:00:14]} 10. Nf3 {[%emt 0:01:03]} Be6 {[%emt 0:00:32]} 11. Ne5 {[%emt 0:03:52]} c5 {[%emt 0:05:32]} 12. f4 {[%emt 0:24:08]} (12. O-O $11 {is superior.}) 12... cxd4 $15 {[%emt 0:24:23] Black is slightly better.} 13. exd4 {[%emt 0:00:06][%cal Od3h7]} Qb6 {[%emt 0:02:25]} 14. O-O-O {[%emt 0:20:49] Threatens to win with f5.} Nc6 {[%emt 0:15:04]} (14... Qxd4 $2 15. Bh7+ Nxh7 16. Rxd4 $18) 15. Nxc6 {[%emt 0:05:04]} bxc6 {[%emt 0:00:21]} 16. Bxf6 {[%emt 0:03:06]} gxf6 {[%emt 0:00:17]} 17. Qd2 {[%emt 0:07:22]} (17. Na4 $11 {remains equal.} Bxf4+ 18. Kb1) 17... Rab8 $1 $17 {[%emt 0:06:06][%cal Od6f4] ...Bxf4! is the strong threat.} (17... Qxd4 $2 18. Bh7+ Kxh7 19. Qxd4 $18) 18. Rdf1 {[%emt 0:00:53]} Bd7 {[%emt 0:08:57]} (18... Qxd4 $2 19. Bh7+ Kxh7 20. Qxd4 $18) (18... Kg7 $17 {[%cal Oe6g4] aiming for ...Bg4!} 19. f5 Bd7) 19. Rf3 {[%emt 0:06:41]} (19. b3 $15 {deserves consideration.}) 19... f5 {[%emt 0:03:22]} (19... Qxd4 $2 20. Bh7+ Kxh7 21. Qxd4 $18) (19... Kf8 $1 $17 {[%cal Od7g4]} 20. Bb1 f5) 20. Bb1 {[%emt 0:01:29]} (20. Qf2 $11) 20... Qd8 {[%emt 0:10:29]} (20... Qb7 $15 21. Rg3+ Kh7) 21. Rhf1 {[%emt 0:05:34]} Qf6 {[%emt 0:01:27]} 22. Rh3 {[%emt 0:00:29]} Rb4 {[%emt 0:01:03]} 23. Rd1 {[%emt 0:05:33]} Reb8 {[%emt 0:01:09]} (23... Rc4 $5 24. b3 Ba3+ 25. Kc2 Rb4 $17) 24. b3 {[%emt 0:01:06]} Rc8 {[%emt 0:02:30]} 25. Bc2 {[%emt 0:00:33]} Be6 {[%emt 0:00:51]} 26. Kb1 {[%emt 0:01:10]} Rcb8 {[%emt 0:04:32]} 27. Rf3 {[%emt 0:02:15]} (27. Ne2 $11) 27... a5 $15 {[%emt 0:01:55]} 28. Kc1 {[%emt 0:00:46]} (28. Qf2 $15) 28... c5 $1 $17 {[%emt 0:04:47]} 29. dxc5 {[%emt 0:02:17]} Bxc5 {[%emt 0:00:03][%cal Oa5a4]} 30. Qd3 {[%emt 0:02:17]} (30. Qe1 $17) 30... Rd4 $19 {[%emt 0:04:38]} 31. Qe2 {[%emt 0:00:25]} Rc8 $2 {[%emt 0:00:43]} (31... Ba3+ $19 32. Kb1 Rxf4 (32... Rxd1+ 33. Nxd1 d4 34. Qe5 $15)) 32. Kb1 $15 {[%emt 0:00:37]} Rxd1+ {[%emt 0:00:29]} 33. Qxd1 {[%emt 0:00:19]} (33. Nxd1 $15 Bd6 34. Nb2) 33... Ba3 {[%emt 0:00:05]} 34. Qd3 {[%emt 0:00:32][%cal Of3e3]} Bf8 $1 {[%emt 0:00:35] White must now prevent ...Bg7.} 35. Nxd5 {[%emt 0:00:46]} Bxd5 {[%emt 0:00:37]} 36. Qxd5 {[%emt 0:00:01]} Bg7 {[%emt 0:00:29]} (36... Re8 $1 $17 {( -> ...Ba3)} 37. Rg3+ (37. Qxa5 $2 Bg7 $19) 37... Bg7 38. Rxg7+ (38. Bxf5 $2 Qb2#) 38... Kxg7 (38... Qxg7 39. Qxa5 Qxg2 40. a4 $17)) 37. Qe5 $1 $11 {[%emt 0:00:13]} (37. Qxa5 $2 Qb2#) 37... Qb6 $2 {[%emt 0:00:41]} (37... Qh4 $11 {and Black has nothing to worry.} 38. Qe2 (38. Qxf5 $2 Qe1+) (38. Qxa5 Qe7 $11) (38. Rg3 $2 Qxg3 39. hxg3 Bxe5 $19) 38... Qxh2 39. Bxf5 Rb8) 38. Qe3 $2 {[%emt 0:00:42] [#]} (38. Qxf5 $2 Qg1+) ({White must play} 38. Rg3 $18 {[%csl Gg3][%cal Re5g7]} f6 39. Qd5+ (39. Qxf5 Qg1+ 40. Kb2 Qd4+ 41. Kc1 Qg1+ 42. Kd2 Qf2+ 43. Kc1 Qg1+ 44. Kd2 Qf2+ 45. Kc1 Qg1+ $11) 39... Kf8 40. Rd3 (40. Qxf5 Qg1+ 41. Kb2 Qd4+ 42. Kb1 Qg1+ 43. Kb2 Qd4+ 44. Ka3 Qd6+ 45. Kb2 Qd4+ $11)) 38... Qf6 {[%emt 0:00:36]} (38... Qc6 $1 $17 {[%csl Gc8][%cal Rc6c2]} 39. Qe2 (39. Bxf5 $2 Re8 $19) 39... Re8) 39. Qe5 $1 {[%emt 0:00:02]} Qc6 $40 {[%emt 0:00:21][%mdl 128] Black attacks.} 40. Qe2 {[%emt 0:01:17] [#] Active counter play!} (40. Qxf5 $11 {was the only way to keep the balance.} Re8 41. Rd3 (41. Qxa5 $2 Qf6 $19)) 40... Re8 {[%emt 0:00:13] White is weak on the dark squares} ({Better is} 40... a4 $1 $17 41. Qc4 (41. bxa4 $2 {perishes.} Qf6 $19) 41... Qb7) 41. Re3 $1 {[%emt 0:00:24]} Rc8 {[%emt 0:00:42][%mdl 1024] Black has compensation.} 42. Rd3 {[%emt 0:00:30]} (42. Bxf5 $2 Qc1#) (42. Qc4 $11 {keeps the balance.} Qa8 43. Qe2) 42... Qc5 {[%emt 0:00:32]} (42... a4 $17 {...axb3 would now be deadly.} 43. b4 (43. bxa4 $2 {is the wrong capture.} Qf6 $19) 43... a3) 43. Re3 {[%emt 0:00:38][%cal Oe2c4]} Kf8 {[%emt 0:00:22] Hoping for ...Qd4.} 44. Qd2 {[%emt 0:00:43]} Bc3 {[%emt 0:00:46]} 45. Qc1 {[%emt 0:00:34]} a4 {[%emt 0:00:23]} 46. g3 {[%emt 0:00:24]} (46. bxa4 $11 Bf6 47. Qd2) 46... Bd4 $17 {[%emt 0:00:34]} 47. Rd3 {[%emt 0:00:22]} axb3 {[%emt 0:00:36]} 48. Rxb3 {[%emt 0:00:12]} Bf6 $2 {[%emt 0:00:25]} ({Black should play} 48... Kg8 $17 {Strongly threatening ...Bf6.} 49. Qd2 Bf6) 49. Qa3 $14 {[%emt 0:00:29]} Kg7 {[%emt 0:00:37]} 50. Qxc5 {[%emt 0:00:04]} Rxc5 $16 {[%emt 0:00:01][%mdl 4096] Endgame. KRB-KRB} 51. a4 {[%emt 0:00:57]} Bd4 {[%emt 0:00:59]} 52. Rb5 {[%emt 0:01:00]} (52. Rd3 $16 Bg1 53. h4) 52... Rxb5+ $11 {[%emt 0:00:28]} 53. axb5 {[%emt 0:00:01] KB-KB} Kf6 {[%emt 0:00:16]} 54. Ka2 {[%emt 0:00:47]} Bg1 {[%emt 0:00:08][%cal Bd4g1,Bg1h2,Bh2f4][%mdl 32] The position is equal.} 55. h3 {[%emt 0:00:23]} Bh2 {[%emt 0:00:17]} 56. g4 {[%emt 0:00:24]} fxg4 {[%emt 0:00:03]} 57. hxg4 {[%emt 0:00:04]} Bxf4 {[%emt 0:00:04]} 58. Kb3 {[%emt 0:00:08]} Kg5 {[%emt 0:00:09]} 59. Bd1 {[%emt 0:00:04]} f5 {[%emt 0:01:47]} 60. gxf5 {[%emt 0:00:06]} Kxf5 {[%emt 0:00:05] Weighted Error Value: White=0.39/Black=0.33.  Loses game:     	---       	Black=1      Missed win:     	White=1     	Black=1      Mistake:       	White=12    	Black=8      Inaccurate:     	White=4     	Black=4      OK:         	White=17    	Black=12     Best:        	White=2     	Black=5      Strong:       	White=3     	Black=3} 1/2-1/2

[Event "French-ch U16-U18 2024"]
[Site "Agen"]
[Date "2024.04.16"]
[Round "4.19"]
[White "Bat, Bilguun"]
[Black "Mendoza, Mael"]
[Result "0-1"]
[ECO "D00"]
[WhiteElo "2360"]
[BlackElo "2088"]
[Annotator "TA"]
[PlyCount "54"]
[EventDate "2024.04.14"]
[EventType "swiss"]
[EventCountry "FRA"]
[SourceTitle "playchess.com"]
[Source "ChessBase"]
[SourceQuality "1"]
[TimeControl "5400+30"]

{[%evp 9,54,-5,0,0,0,0,-7,0,0,0,8,0,0,0,72,-94,-85,-76,-42,-276,-249,-592,-589,-559,-617,-624,-614,-604,-618,-640,-614,-652,-593,-851,-840,-1285,-1270,-1238,-1194,-29966,-29967,-29988,-29989,-29990,-29991,-29991,-29992]} 1. d4 {[%emt 0:00:05]} Nf6 {[%emt 0:00:55]} 2. Nc3 {[%emt 0:00:44]} d5 {[%emt 0:00:25]} 3. Bf4 {[%emt 0:00:18]} g6 {[%emt 0:00:47]} 4. e3 {[%emt 0:00:26]} Bg7 {[%emt 0:00:31]} 5. h4 {[%emt 0:00:20]} h5 {[%emt 0:00:37]} 6. Nf3 {[%emt 0:00:36]} (6. Nb5 $5 Na6 $8 7. Nc3 $11) 6... O-O {[%emt 0:03:16][%cal Oc7c5]} 7. Ne5 {[%emt 0:00:46]} c5 {[%emt 0:02:31]} 8. Qd2 {[%emt 0:00:31] The position is equal.} cxd4 {[%emt 0:04:34]} 9. exd4 {[%emt 0:00:14]} Bf5 {[%emt 0:01:02]} 10. f3 {[%emt 0:00:33]} Nc6 {[%emt 0:11:42]} 11. Bb5 {[%emt 0:00:41]} Qb6 {[%emt 0:05:52]} (11... Nxe5 $11 12. dxe5 d4 13. exf6 dxc3 14. Qxd8 Rfxd8 15. fxg7 (15. fxe7 Re8 $17) 15... cxb2) 12. O-O-O $2 {[%emt 0:04:48] [#]} (12. Bxc6 $16 {keeps the pressure on.} bxc6 13. Na4) 12... Nb4 $1 $17 {[%emt 0:07:31][%cal Of8c8] Strongly threatening ...Rfc8!} 13. Ba4 {[%emt 0:06:41]} Rac8 {[%emt 0:05:08][%cal Oc8c3] ...Rxc3! is the strong threat.} (13... Rfc8 {seems wilder.} 14. Kb1 Rxc3 15. Qxc3 Nxc2 16. Bxc2 Rc8) 14. Bb3 $2 {[%emt 0:15:20] [#] This costs White the game.} (14. Kb1 $1 $15) 14... Bxc2 $1 $19 {[%emt 0:02:30]} 15. Bxc2 $2 {[%emt 0:07:57] [#]} (15. Rde1 Bxb3 16. axb3) 15... Rxc3 $1 {[%emt 0:00:13][%mdl 512]} 16. Qxc3 {[%emt 0:00:21]} Nxa2+ {[%emt 0:00:10]} 17. Kd2 {[%emt 0:00:05]} Nxc3 {[%emt 0:00:21]} 18. bxc3 {[%emt 0:00:06]} Rc8 {[%emt 0:06:19]} 19. Rb1 {[%emt 0:04:24] Prevents Qb2} Qa5 {[%emt 0:01:05]} 20. Rb3 {[%emt 0:00:09]} Ne8 {[%emt 0:01:46] ...Nc7 would now be deadly.} 21. g4 {[%emt 0:00:23]} Nd6 {[%emt 0:06:09][%cal Oc8c3] aiming for ...Rxc3!} 22. Bd3 {[%emt 0:06:04]} Bxe5 {[%emt 0:09:44]} 23. dxe5 {[%emt 0:08:10]} Nc4+ {[%emt 0:01:02]} 24. Kc1 {[%emt 0:02:40]} Qa1+ {[%emt 0:02:28] Black mates.} 25. Bb1 {[%emt 0:00:08]} Na5 {[%emt 0:00:16][%csl LRb3,LRc3]} 26. Rb5 {[%emt 0:01:10]} Qxc3+ {[%emt 0:00:29]} 27. Kd1 {[%emt 0:00:05]} Qxf3+ {[%emt 0:00:35] Weighted Error Value: White=1.41/Black=0.13 (very precise) .  Loses game:     	White=1     	---        Mistake:       	White=2     	Black=1      Inaccurate:     	White=1     	Black=1      OK:         	White=3     	Black=5      Best:        	White=1     	Black=1      Strong:       	---       	Black=2      Brilliant:      	---       	Black=1} 0-1

[Event "French-ch U16-U18 2024"]
[Site "Agen"]
[Date "2024.04.16"]
[Round "4.20"]
[White "Warnier, Yanis"]
[Black "Tulliez, Andre"]
[Result "0-1"]
[ECO "B90"]
[WhiteElo "2116"]
[BlackElo "2157"]
[Annotator "TA"]
[PlyCount "66"]
[EventDate "2024.04.14"]
[EventType "swiss"]
[EventCountry "FRA"]
[SourceTitle "playchess.com"]
[Source "ChessBase"]
[SourceQuality "1"]
[TimeControl "5400+30"]

{[%evp 11,66,-6,2,0,16,27,23,19,13,-12,24,12,34,19,32,25,45,45,85,84,89,83,67,0,0,-60,-62,-58,-54,-81,-79,-74,-75,-79,-82,-77,-49,-47,-25,-19,-11,-66,-50,-58,-56,-48,-37,-53,-54,-120,-109,-600,-595,-589,-591,-591,-588]} 1. e4 {[%emt 0:00:12]} c5 {[%emt 0:00:03]} 2. Nf3 {[%emt 0:00:06]} d6 {[%emt 0:00:03]} 3. d4 {[%emt 0:00:05]} cxd4 {[%emt 0:00:04]} 4. Nxd4 {[%emt 0:00:05]} Nf6 {[%emt 0:00:04]} 5. Nc3 {[%emt 0:00:06]} a6 {[%emt 0:00:02]} 6. Rg1 {[%emt 0:00:47]} e5 {[%emt 0:01:29]} 7. Nb3 {[%emt 0:00:07]} h5 {[%emt 0:00:07]} 8. h3 {[%emt 0:04:51]} Be6 {[%emt 0:00:22]} 9. Be3 {[%emt 0:07:10] White has an edge.} Nbd7 {[%emt 0:06:18]} 10. Qf3 {[%emt 0:03:06]} h4 {[%emt 0:01:59]} 11. O-O-O {[%emt 0:00:16]} Rc8 {[%emt 0:00:01][%cal Oc8c3]} 12. Nd5 {[%emt 0:01:24]} Bxd5 {[%emt 0:09:58]} 13. exd5 {[%emt 0:00:16]} Qc7 {[%emt 0:17:25]} 14. c3 {[%emt 0:09:36]} Be7 {[%emt 0:05:19]} 15. g4 {[%emt 0:14:03]} hxg3 {[%emt 0:04:19]} 16. fxg3 {[%emt 0:00:02]} Nb6 {[%emt 0:07:26]} 17. g4 {[%emt 0:07:26]} (17. Kb1 $14) 17... Nbxd5 $1 $11 {[%emt 0:06:32]} 18. Rxd5 {[%emt 0:13:24]} (18. Bd2 $1 $11 e4 19. Qg3) 18... Qc6 $1 $15 {[%emt 0:00:21]} 19. Bg2 $1 {[%emt 0:05:06][%cal Of3d1] [#] Threatens to win with Qd1!} e4 $1 {[%emt 0:00:22]} ({Don't play} 19... Qxd5 $6 20. Qxd5 Nxd5 21. Bxd5 Rxh3 22. Bb6 $16 (22. Bxb7 $2 Rc7 $19)) 20. Qf5 {[%emt 0:01:47]} g6 {[%emt 0:01:30]} (20... Nxd5 $2 {too greedy.} 21. Bxe4 Nxe3 22. Bxc6+ Rxc6 23. Qe4 $18 (23. Qf3 Nc4 $18)) 21. Rxd6 {[%emt 0:01:42]} gxf5 {[%emt 0:09:32]} 22. Rxc6 {[%emt 0:00:04]} bxc6 {[%emt 0:02:59]} 23. gxf5 {[%emt 0:01:55]} Rg8 {[%emt 0:00:43]} 24. Nd2 {[%emt 0:00:48]} Nd5 {[%emt 0:07:25]} 25. Bxe4 {[%emt 0:00:34]} Kd7 {[%emt 0:07:52]} 26. Re1 {[%emt 0:08:31]} ({Better is} 26. Rxg8 $11 Rxg8 27. Bd4) 26... Bh4 {[%emt 0:04:23]} 27. Re2 {[%emt 0:01:03]} Rce8 $36 {[%emt 0:02:11][%mdl 2048] Black is more active.} 28. Kc2 {[%emt 0:01:38]} Rg3 {[%emt 0:01:52]} 29. Bd4 {[%emt 0:02:31]} Rxh3 {[%emt 0:01:15]} 30. Nc4 {[%emt 0:01:32]} ({White should play} 30. Rg2 $15) 30... Bf6 $17 {[%emt 0:01:21]} 31. Rd2 $2 {[%emt 0:03:06][%mdl 8192] [#]} Rxe4 $19 {[%emt 0:00:55] Black is clearly winning.} 32. Bxf6 {[%emt 0:00:34]} Rxc4 {[%emt 0:00:06]} 33. b3 {[%emt 0:00:21]} Rcxc3+ {[%emt 0:00:43] Weighted Error Value: White=0.41/Black=0.06 (flawless) .  Loses game:     	White=1     	---        Mistake:       	White=4     	---        Inaccurate:     	White=1     	Black=3      OK:         	White=12    	Black=9      Best:        	White=2     	Black=4      Strong:       	White=1     	Black=3} 0-1

[Event "French-ch U16-U18 2024"]
[Site "Agen"]
[Date "2024.04.17"]
[Round "5.1"]
[White "Paralieu, Emma"]
[Black "Pereira-Davoine, Alana"]
[Result "1/2-1/2"]
[ECO "B10"]
[WhiteElo "1775"]
[BlackElo "1780"]
[Annotator "NA RC COMBH"]
[PlyCount "58"]
[EventDate "2024.04.14"]
[EventType "swiss"]
[EventCountry "FRA"]
[SourceTitle "playchess.com"]
[Source "ChessBase"]
[SourceQuality "1"]
[TimeControl "5400+30"]

1. e4 {[%emt 0:00:04]} c6 {[%emt 0:00:09]} 2. Nf3 {[%emt 0:00:18]} d5 {[%emt 0:02:04]} 3. d3 {[%emt 0:00:20]} dxe4 {[%emt 0:00:25]} 4. dxe4 {[%emt 0:00:07]} Qxd1+ {[%emt 0:00:07]} 5. Kxd1 {[%emt 0:00:06]} Nf6 {[%emt 0:00:28]} 6. Nbd2 {[%emt 0:00:47]} g6 {[%emt 0:03:30]} 7. Ne1 {[%emt 0:03:05]} Bh6 {[%emt 0:06:35]} 8. f3 {[%emt 0:09:22]} O-O {[%emt 0:03:31]} 9. Nd3 {[%emt 0:01:33]} Rd8 {[%emt 0:06:16]} 10. Be2 {[%emt 0:05:45]} Na6 {[%emt 0:13:00]} 11. a4 {[%emt 0:00:28]} Nc7 {[%emt 0:04:37]} 12. c3 {[%emt 0:13:01]} Ne6 {[%emt 0:16:34]} 13. g3 {[%emt 0:16:54]} Nd7 {[%emt 0:01:51]} 14. Kc2 {[%emt 0:09:38]} Ndc5 {[%emt 0:08:57]} 15. Nxc5 {[%emt 0:14:00]} Nxc5 {[%emt 0:00:08]} 16. f4 {[%emt 0:02:29]} Be6 {[%emt 0:08:01]} 17. b4 {[%emt 0:01:19]} Nd7 {[%emt 0:00:41]} 18. Ba3 {[%emt 0:04:06]} Nf6 {[%emt 0:04:12]} 19. b5 {[%emt 0:04:45]} Rd7 {[%emt 0:01:13]} 20. Rad1 {[%emt 0:05:18]} Ng4 {[%emt 0:01:36]} 21. Bxg4 {[%emt 0:00:38]} Bxg4 {[%emt 0:00:06]} 22. Rde1 {[%emt 0:02:23]} Rad8 {[%emt 0:01:33]} 23. Nb3 {[%emt 0:02:33]} Bg7 {[%emt 0:04:08]} 24. h3 {[%emt 0:01:19]} Be6 {[%emt 0:01:38]} 25. Re3 {[%emt 0:00:49]} cxb5 {[%emt 0:01:46]} 26. axb5 {[%emt 0:00:02]} Bc4 {[%emt 0:01:28]} 27. Bc5 {[%emt 0:01:42]} Bxb5 {[%emt 0:01:07]} 28. Ra1 {[%emt 0:00:56]} b6 {[%emt 0:02:50]} 29. Bd4 {[%emt 0:00:30]} Bc4 {[%emt 0:06:29]} 1/2-1/2